bitfinex/quotes_SOLUSD_20250929
["timestamp","ask_amount","ask_price","bid_price","bid_amount"]
[1759140548108,0.68,208.5,208.47,36.96]
[1759140548428,0.68,208.49,208.47,36.96]
[1759140549219,0.68,208.48,208.47,36.96]
[1759140549417,26.68,208.5,208.47,36.96]
[1759140549728,1.41584155,208.51,208.47,36.96]
[1759140549729,2.09584155,208.48,208.47,36.96]
[1759140550119,1.41584155,208.48,208.47,0.1]
[1759140551530,2.09584155,208.48,208.47,0.1]
[1759140554434,1.41584155,208.48,208.47,0.1]
[1759140554631,1.41584155,208.48,208.47,4.89685326]
[1759140555017,0.67,208.5,208.47,4.89685326]
[1759140555233,26.0,208.48,208.47,0.1]
[1759140555433,41.68143556,208.48,208.46,0.1]
[1759140555803,13.59559401,208.47,208.46,0.1]
[1759140556007,39.59559401,208.47,208.46,0.1]
[1759140556232,40.26559401,208.47,208.46,0.1]
[1759140556738,41.68143556,208.47,208.46,0.1]
[1759140557114,46.47828882,208.47,208.46,0.1]
[1759140562928,48.40279987,208.47,208.46,0.1]
[1759140563235,46.47828882,208.47,208.46,0.1]
[1759140570936,48.40279987,208.47,208.46,0.1]
[1759140575547,85.26279987,208.47,208.46,0.1]
[1759140586956,57.17695832,208.47,208.46,0.1]
[1759140587258,59.29279987,208.47,208.46,0.1]
[1759140590252,62.50301329,208.47,208.46,0.1]
[1759140601048,98.47941277,208.47,208.42,0.1]
[1759140601262,15.01143556,208.43,208.42,0.1]
[1759140601461,51.81143556,208.43,208.42,0.1]
[1759140601640,57.65662311,208.43,208.42,0.1]
[1759140601974,62.45439694,208.43,208.42,0.1]
[1759140604474,63.25465604,208.43,208.42,0.1]
[1759140615475,63.27465604,208.43,208.42,0.1]
[1759140639400,62.56465604,208.43,208.42,0.1]
[1759140639593,23.52855539,208.43,208.42,0.69]
[1759140639779,22.53444262,208.43,208.42,0.69]
[1759140639974,25.74465604,208.43,208.42,0.69]
[1759140640374,25.74465604,208.43,208.42,0.1]
[1759140640880,26.43465604,208.43,208.42,0.1]
[1759140641284,25.74465604,208.43,208.42,0.1]
[1759140641879,26.43465604,208.43,208.42,0.1]
[1759140645091,25.74465604,208.43,208.42,0.1]
[1759140646598,26.43465604,208.43,208.42,0.1]
[1759140648807,25.74465604,208.43,208.42,0.1]
[1759140652000,26.42465604,208.43,208.42,0.1]
[1759140660912,25.74465604,208.43,208.42,0.1]
[1759140661114,23.52855539,208.43,208.42,0.69]
[1759140661313,60.32855539,208.43,208.42,0.69]
[1759140662425,5.13518755,208.43,208.42,0.69]
[1759140663313,9.93296138,208.43,208.42,0.69]
[1759140663702,5.13518755,208.43,208.42,0.69]
[1759140664727,1.92497413,208.43,208.42,0.69]
[1759140664925,2.21610065,208.48,208.42,5.48800403]
[1759140665112,5.14310249,208.47,208.43,0.59]
[1759140665309,26.0,208.46,208.43,0.59]
[1759140665620,1.92414075,208.47,208.43,0.59]
[1759140665821,3.21896174,208.49,208.43,0.59]
[1759140666119,4.89800403,208.48,208.43,0.59]
[1759140666529,26.0,208.49,208.44,16.79140279]
[1759140666724,26.0,208.49,208.45,0.59]
[1759140667404,1.41660647,208.55,208.45,0.59]
[1759140667604,14.42689172,208.53,208.45,0.59]
[1759140667804,26.0,208.53,208.45,0.59]
[1759140668031,43.64050898,208.53,208.45,0.59]
[1759140668209,40.42689172,208.53,208.45,0.59]
[1759140669125,19.22237509,208.53,208.46,4.79708337]
[1759140669333,19.22237509,208.53,208.47,0.59]
[1759140669334,45.22237509,208.53,208.47,0.59]
[1759140669938,40.42689172,208.53,208.47,0.59]
[1759140671022,40.42689172,208.53,208.48,4.79662317]
[1759140671224,0.68,208.56,208.49,0.59]
[1759140671520,11.99270843,208.54,208.49,0.59]
[1759140673014,37.99270843,208.54,208.48,11.99155794]
[1759140673328,37.99270843,208.54,208.49,0.59]
[1759140673520,37.99270843,208.54,208.48,11.99155794]
[1759140673708,37.99270843,208.54,208.49,0.59]
[1759140674029,37.99270843,208.54,208.5,0.59]
[1759140674214,38.68270843,208.54,208.5,0.59]
[1759140674527,37.99270843,208.54,208.5,0.59]
[1759140674911,37.99270843,208.54,208.48,11.99155794]
[1759140675224,37.99270843,208.54,208.5,4.7959756]
[1759140675404,0.69,208.53,208.49,0.59]
[1759140676029,0.69,208.53,208.49,5.38632273]
[1759140676531,37.99270843,208.54,208.49,5.38632273]
[1759140676724,38.68270843,208.54,208.49,5.38632273]
[1759140677330,0.69,208.53,208.49,4.79632273]
[1759140677533,0.69,208.52,208.49,4.79632273]
[1759140678526,0.69,208.52,208.48,4.79662317]
[1759140678728,0.69,208.52,208.48,5.38662317]
[1759140678928,38.68270843,208.54,208.49,0.59]
[1759140679231,0.69,208.53,208.49,0.59]
[1759140679623,37.99270843,208.54,208.49,0.59]
[1759140679823,38.68270843,208.54,208.5,0.59]
[1759140680128,37.99270843,208.54,208.51,0.59]
[1759140680636,38.68270843,208.54,208.51,4.7958999]
[1759140681011,37.99270843,208.54,208.51,4.7958999]
[1759140681331,38.66270843,208.54,208.51,4.7958999]
[1759140681926,0.67,208.53,208.48,12.58155794]
[1759140682236,37.99270843,208.54,208.49,0.59]
[1759140682437,37.99270843,208.54,208.5,0.59]
[1759140682932,38.66270843,208.54,208.51,4.79593304]
[1759140683136,0.67,208.53,208.51,4.79593304]
[1759140684036,37.99270843,208.54,208.49,4.79639311]
[1759140684242,37.99270843,208.54,208.49,17.37737589]
[1759140684436,37.99270843,208.54,208.5,0.59]
[1759140684735,26.67,208.55,208.51,0.59]
[1759140685126,41.09619797,208.55,208.51,0.59]
[1759140685654,0.67,208.54,208.49,16.78737589]
[1759140685834,0.67,208.54,208.49,17.37737589]
[1759140686140,0.67,208.53,208.49,17.37737589]
[1759140687026,0.67,208.53,208.49,16.78737589]
[1759140687530,0.67,208.53,208.49,17.37737589]
[1759140688338,41.09619797,208.55,208.49,17.37737589]
[1759140688842,0.67,208.54,208.49,17.37737589]
[1759140689144,0.67,208.53,208.49,17.37737589]
[1759140693540,0.67,208.52,208.49,16.78737589]
[1759140693750,0.67,208.52,208.49,4.79639311]
[1759140694245,14.42619798,208.54,208.49,4.79639311]
[1759140694445,0.67,208.53,208.49,4.79639311]
[1759140695043,0.67,208.53,208.49,5.38639311]
[1759140695246,0.67,208.53,208.49,4.79639311]
[1759140695539,0.67,208.53,208.48,16.78813003]
[1759140695745,0.67,208.53,208.48,17.37813003]
[1759140696243,0.67,208.52,208.48,17.37813003]
[1759140697447,0.67,208.53,208.48,17.37813003]
[1759140697646,16.78749788,208.54,208.48,4.79662317]
[1759140697836,0.67,208.52,208.48,41.55662317]
[1759140698036,0.67,208.51,208.48,41.55662317]
[1759140700842,0.67,208.51,208.48,4.79662317]
[1759140701051,0.67,208.5,208.48,4.79662317]
[1759140701239,0.67,208.52,208.48,4.79662317]
[1759140701439,0.67,208.51,208.48,4.79662317]
[1759140704354,0.67,208.5,208.47,41.55685326]
[1759140712159,4.79577767,208.51,208.47,41.55685326]
[1759140712345,5.48577767,208.51,208.47,42.14685326]
[1759140712547,5.48577767,208.51,208.47,54.13898642]
[1759140712860,0.69,208.52,208.47,54.13898642]
[1759140713238,40.42758554,208.53,208.48,0.59]
[1759140713464,26.0,208.52,208.49,0.59]
[1759140714254,26.0,208.52,208.5,36.76]
[1759140714458,26.0,208.52,208.5,37.35]
[1759140714664,26.0,208.52,208.5,42.1460253]
[1759140715358,26.0,208.52,208.5,36.76]
[1759140716167,26.0,208.52,208.5,41.5560694]
[1759140718953,26.0,208.54,208.51,0.59]
[1759140719265,0.69,208.53,208.5,41.5560694]
[1759140719561,0.69,208.52,208.5,41.5560694]
[1759140720171,0.69,208.53,208.5,41.5560694]
[1759140721569,29.21498729,208.54,208.5,41.5560694]
[1759140721750,3.21498729,208.56,208.51,0.59]
[1759140721950,0.69,208.58,208.52,36.76]
[1759140722254,29.21530001,208.57,208.53,0.59]
[1759140722452,3.21530001,208.56,208.54,36.76]
[1759140722650,3.21530001,208.56,208.54,37.35]
[1759140722865,3.21530001,208.57,208.54,36.76]
[1759140723063,3.21530001,208.56,208.54,36.76]
[1759140723368,3.21530001,208.57,208.54,37.35]
[1759140723562,3.21530001,208.56,208.54,37.35]
[1759140723769,3.21530001,208.57,208.55,4.79501318]
[1759140723961,3.21530001,208.56,208.55,4.79501318]
[1759140724160,3.21530001,208.57,208.55,4.79501318]
[1759140724460,0.69,208.58,208.55,4.79501318]
[1759140724665,3.21324555,208.57,208.55,4.79501318]
[1759140724864,3.21329948,208.57,208.55,4.79501318]
[1759140725057,3.21268723,208.59,208.56,0.59]
[1759140725261,3.21268723,208.58,208.57,36.76]
[1759140725565,0.69,208.6,208.57,36.76]
[1759140725566,3.21268723,208.59,208.57,36.76]
[1759140725767,0.69,208.6,208.57,41.55455338]
[1759140725768,3.21268723,208.58,208.57,41.55455338]
[1759140726269,3.21268723,208.59,208.57,42.14455338]
[1759140726455,3.90268723,208.61,208.57,42.14455338]
[1759140726657,3.21268723,208.6,208.57,42.14455338]
[1759140726965,3.21268723,208.6,208.57,54.13093684]
[1759140727165,26.69,208.62,208.57,54.13093684]
[1759140727166,3.21268723,208.61,208.57,54.13093684]
[1759140727866,3.90268723,208.6,208.55,0.59]
[1759140728065,29.21268723,208.59,208.53,14.18171773]
[1759140728267,0.69,208.58,208.54,36.74]
[1759140728469,31.42344594,208.59,208.54,36.74]
[1759140728673,0.69,208.57,208.54,36.74]
[1759140728861,31.42344594,208.59,208.54,36.74]
[1759140729072,0.69,208.58,208.54,37.33]
[1759140729369,0.69,208.58,208.54,36.74]
[1759140729562,0.69,208.58,208.54,37.33]
[1759140729766,0.69,208.58,208.55,4.79501318]
[1759140731376,0.69,208.57,208.55,4.79501318]
[1759140732971,26.0,208.59,208.55,4.79501318]
[1759140733179,0.69,208.58,208.55,4.79501318]
[1759140733879,0.69,208.57,208.55,4.79501318]
[1759140735585,0.69,208.57,208.54,41.53519706]
[1759140737678,0.69,208.56,208.54,36.74]
[1759140738096,0.69,208.58,208.54,41.53523411]
[1759140738378,2.21075871,208.56,208.53,36.74]
[1759140738685,0.69,208.55,208.53,36.74]
[1759140738868,0.69,208.54,208.53,36.74]
[1759140742989,2.90075871,208.54,208.47,0.59]
[1759140743167,2.90075871,208.54,208.48,36.74]
[1759140743369,0.69,208.53,208.48,37.33]
[1759140743570,2.21075871,208.54,208.48,37.33]
[1759140743766,0.69,208.52,208.48,37.33]
[1759140743986,2.21075871,208.54,208.48,41.53644184]
[1759140744184,2.90075871,208.54,208.49,0.59]
[1759140744687,2.90075871,208.54,208.5,4.79616306]
[1759140745370,2.90075871,208.54,208.5,5.38616306]
[1759140745701,2.90075871,208.54,208.51,41.53591422]
[1759140747189,2.21075871,208.54,208.51,41.53591422]
[1759140747368,2.90075871,208.54,208.51,41.53591422]
[1759140747990,0.69,208.54,208.51,41.53591422]
[1759140749193,2.90075871,208.53,208.51,36.74]
[1759140749489,0.69,208.52,208.51,36.74]
[1759140749879,0.69,208.52,208.49,36.74]
[1759140750178,2.90075871,208.51,208.49,36.74]
[1759140750479,0.69,208.5,208.49,36.74]
[1759140750677,2.21075871,208.51,208.49,36.74]
[1759140751074,2.90075871,208.51,208.49,36.74]
[1759140755083,0.69,208.5,208.49,36.74]
[1759140755394,2.90075871,208.51,208.49,36.74]
[1759140756496,9.59099516,208.53,208.5,0.59]
[1759140756796,0.69,208.57,208.5,0.59]
[1759140757785,0.69,208.57,208.51,4.79593304]
[1759140757979,0.69,208.57,208.52,36.74]
[1759140758180,0.69,208.57,208.52,37.33]
[1759140758502,0.69,208.57,208.53,0.59]
[1759140758694,2.21075871,208.58,208.54,0.59]
[1759140758902,3.89850998,208.59,208.55,37.33]
[1759140759685,3.89850998,208.59,208.56,4.79478327]
[1759140760395,3.20850998,208.59,208.56,4.79478327]
[1759140761301,3.20850998,208.59,208.56,5.38478327]
[1759140761598,3.20850998,208.6,208.57,0.59]
[1759140761794,3.20850998,208.61,208.57,0.59]
[1759140761994,3.20850998,208.6,208.57,0.59]
[1759140762508,3.89850998,208.6,208.56,4.79478327]
[1759140762802,0.69,208.6,208.56,4.79478327]
[1759140763003,3.89850998,208.6,208.56,4.79478327]
[1759140763299,0.69,208.59,208.55,41.53501103]
[1759140763497,10.21314018,208.6,208.55,41.53501103]
[1759140763708,0.69,208.59,208.55,41.53501103]
[1759140764082,0.69,208.59,208.55,42.12501103]
[1759140764404,0.69,208.59,208.55,41.53501103]
[1759140764707,0.69,208.59,208.55,42.12501103]
[1759140765204,0.69,208.59,208.55,41.53501103]
[1759140765703,2.90075871,208.58,208.52,5.41926869]
[1759140765892,2.21075871,208.56,208.53,36.74]
[1759140766082,0.69,208.55,208.53,36.74]
[1759140766291,0.69,208.54,208.53,36.74]
[1759140766498,2.90075871,208.57,208.53,36.74]
[1759140766685,0.69,208.56,208.53,36.74]
[1759140766887,0.69,208.55,208.53,36.74]
[1759140767997,2.90075871,208.54,208.47,14.62842303]
[1759140768202,2.21075871,208.52,208.48,36.74]
[1759140768505,0.69,208.51,208.48,36.74]
[1759140768888,2.90075871,208.5,208.48,36.74]
[1759140769209,2.21075871,208.5,208.48,36.74]
[1759140769513,7.69655575,208.52,208.48,36.74]
[1759140769698,0.69,208.51,208.48,36.74]
[1759140770693,0.69,208.5,208.48,36.74]
[1759140771004,0.69,208.49,208.48,36.74]
[1759140771592,0.69,208.49,208.44,0.59]
[1759140771906,0.69,208.49,208.46,36.74]
[1759140773111,4.79639958,208.49,208.46,36.74]
[1759140773419,0.69,208.48,208.46,36.74]
[1759140773707,2.21075871,208.5,208.47,0.59]
[1759140774086,2.21075871,208.52,208.48,0.59]
[1759140774294,7.00715829,208.52,208.48,0.59]
[1759140774792,0.69,208.51,208.46,42.12701383]
[1759140775488,2.21075871,208.52,208.46,41.53701383]
[1759140775688,2.21075871,208.52,208.47,0.59]
[1759140776200,2.21075871,208.52,208.48,0.59]
[1759140776398,2.21075871,208.52,208.49,36.74]
[1759140776597,0.69,208.53,208.49,36.74]
[1759140777889,0.69,208.53,208.49,41.53633409]
[1759140778093,2.90075871,208.54,208.49,41.53633409]
[1759140778404,14.42619798,208.55,208.5,0.59]
[1759140778587,5.48388274,208.6,208.5,0.59]
[1759140778791,19.90730638,208.6,208.5,0.59]
[1759140779587,22.11806509,208.6,208.5,0.59]
[1759140779809,22.11806509,208.6,208.51,16.78576566]
[1759140780010,0.69,208.59,208.52,0.59]
[1759140780311,2.21075871,208.58,208.53,36.74]
[1759140780494,0.69,208.57,208.53,36.74]
[1759140780696,0.69,208.56,208.53,36.74]
[1759140780900,0.69,208.55,208.53,36.74]
[1759140781498,0.69,208.55,208.52,41.53569872]
[1759140781998,4.79459646,208.57,208.52,41.53569872]
[1759140782199,0.69,208.56,208.52,41.53569872]
[1759140782405,0.69,208.56,208.51,4.79593304]
[1759140782603,0.69,208.55,208.52,36.74]
[1759140782799,2.90075871,208.58,208.53,0.59]
[1759140783106,0.69,208.57,208.53,0.59]
[1759140784211,0.69,208.57,208.54,4.79524311]
[1759140785089,2.90075871,208.56,208.47,0.59]
[1759140785293,2.21075871,208.54,208.48,36.74]
[1759140785517,0.69,208.53,208.48,36.74]
[1759140785703,0.69,208.52,208.48,36.74]
[1759140785902,0.69,208.51,208.48,36.74]
[1759140786420,0.69,208.5,208.48,36.74]
[1759140786618,0.69,208.49,208.48,36.74]
[1759140786992,0.69,208.53,208.48,36.74]
[1759140787198,0.69,208.52,208.48,41.53662317]
[1759140787505,0.69,208.51,208.48,36.74]
[1759140787704,0.69,208.5,208.48,36.74]
[1759140787907,0.69,208.5,208.48,41.53660596]
[1759140789804,0.69,208.49,208.48,36.74]
[1759140790292,0.69,208.51,208.48,36.74]
[1759140790502,0.69,208.5,208.48,36.74]
[1759140790909,0.69,208.49,208.48,36.74]
[1759140792215,0.69,208.5,208.48,36.74]
[1759140792408,0.69,208.49,208.48,36.74]
[1759140793212,0.69,208.49,208.44,4.7975148]
[1759140793419,0.68,208.48,208.45,36.74]
[1759140794207,4.79639311,208.49,208.43,5.3877631]
[1759140794412,4.79639311,208.49,208.43,36.74]
[1759140794413,2.09643039,208.48,208.43,36.74]
[1759140794630,0.68,208.47,208.43,36.74]
[1759140794803,2.09643039,208.46,208.43,36.74]
[1759140797226,2.09643039,208.46,208.43,41.53776198]
[1759140798210,1.41643039,208.46,208.43,36.74]
[1759140798415,0.68,208.45,208.43,36.74]
[1759140798626,0.68,208.44,208.43,36.74]
[1759140799232,3.20878569,208.52,208.43,36.74]
[1759140799413,0.68,208.46,208.43,36.74]
[1759140800723,0.68,208.45,208.43,36.74]
[1759140800923,2.09643039,208.47,208.43,36.74]
[1759140801113,1.41643039,208.47,208.43,36.74]
[1759140801306,0.66,208.46,208.43,36.74]
[1759140801511,6.21342329,208.47,208.43,36.74]
[1759140801512,0.66,208.45,208.43,36.74]
[1759140802123,6.87342329,208.47,208.43,36.74]
[1759140802322,0.66,208.46,208.43,36.74]
[1759140807546,6.21342329,208.47,208.43,36.74]
[1759140807731,0.66,208.46,208.43,36.74]
[1759140807926,0.66,208.45,208.43,36.74]
[1759140808336,6.21342329,208.47,208.43,36.74]
[1759140808642,0.66,208.46,208.43,36.74]
[1759140811640,11.99034413,208.51,208.43,41.53776189]
[1759140811835,16.78632333,208.51,208.44,0.59]
[1759140812139,1.41643039,208.48,208.42,4.89796805]
[1759140812345,0.66,208.47,208.43,36.74]
[1759140813456,6.21324033,208.48,208.43,36.74]
[1759140813746,0.66,208.46,208.43,36.74]
[1759140813925,0.66,208.45,208.42,0.1]
[1759140814248,0.66,208.45,208.43,36.76]
[1759140815818,1.41643039,208.46,208.43,36.76]
[1759140816023,1.41643039,208.47,208.43,37.35]
[1759140816436,2.07643039,208.47,208.43,37.35]
[1759140816836,2.07643039,208.47,208.43,36.76]
[1759140817151,6.87329011,208.47,208.43,41.55774811]
[1759140817343,2.07643039,208.47,208.43,42.14774811]
[1759140817845,6.87330836,208.47,208.43,42.14774811]
[1759140818030,1.41643039,208.49,208.44,0.59]
[1759140818238,1.41643039,208.49,208.45,0.59]
[1759140818435,2.07643039,208.49,208.44,0.59]
[1759140819039,4.61695033,208.52,208.45,0.59]
[1759140819249,1.41643039,208.5,208.45,0.59]
[1759140819548,0.66,208.49,208.44,4.79735126]
[1759140819750,0.66,208.49,208.45,0.59]
[1759140819940,1.41643039,208.5,208.44,16.7912104]
[1759140820142,1.41643039,208.5,208.46,0.59]
[1759140820447,6.21219102,208.52,208.46,37.37]
[1759140820642,1.41643039,208.52,208.47,0.59]
[1759140821052,2.07643039,208.52,208.47,0.59]
[1759140821348,2.07643039,208.52,208.48,4.79662317]
[1759140821349,1.41643039,208.52,208.48,4.79662317]
[1759140821542,2.07643039,208.52,208.48,5.38662317]
[1759140822045,1.41643039,208.52,208.48,5.38662317]
[1759140822347,1.41643039,208.54,208.49,0.59]
[1759140822537,1.41643039,208.54,208.5,0.59]
[1759140823247,1.41643039,208.56,208.52,4.79570305]
[1759140823550,1.41643039,208.56,208.52,5.38570305]
[1759140824250,2.07643039,208.56,208.52,5.38570305]
[1759140824458,1.41643039,208.54,208.43,5.38777383]
[1759140824629,1.41643039,208.5,208.45,36.84]
[1759140824948,2.07643039,208.5,208.46,0.59]
[1759140825456,0.66,208.49,208.45,41.63720148]
[1759140825639,0.66,208.48,208.45,41.63720148]
[1759140825840,6.87259536,208.5,208.45,41.63720148]
[1759140826043,0.66,208.49,208.45,41.63720148]
[1759140826633,0.66,208.49,208.45,42.22720148]
[1759140826853,2.07643039,208.5,208.45,42.22720148]
[1759140827059,2.07643039,208.5,208.46,0.59]
[1759140827351,2.07643039,208.5,208.45,4.79720148]
[1759140827543,1.41643039,208.5,208.46,37.43]
[1759140827744,1.41643039,208.5,208.47,0.59]
[1759140827944,1.41643039,208.5,208.46,36.84]
[1759140828145,1.41643039,208.5,208.47,0.59]
[1759140829036,1.41643039,208.5,208.47,5.38674948]
[1759140829239,3.1998261,208.54,208.48,0.59]
[1759140829540,0.66,208.53,208.47,16.78888264]
[1759140829855,1.41643039,208.52,208.47,4.79674948]
[1759140830055,0.66,208.51,208.47,4.79674948]
[1759140830571,1.41643039,208.52,208.48,0.59]
[1759140831057,1.41643039,208.52,208.49,4.79639311]
[1759140831252,0.66,208.53,208.5,36.88]
[1759140831553,2.07643039,208.53,208.5,36.88]
[1759140831935,2.07643039,208.53,208.49,41.67639311]
[1759140833535,2.07643039,208.53,208.49,42.26639311]
[1759140834244,0.66,208.52,208.49,36.88]
[1759140834447,0.66,208.51,208.49,36.88]
[1759140835436,6.2119944,208.53,208.49,36.88]
[1759140835636,0.66,208.52,208.49,36.88]
[1759140836055,1.41643039,208.53,208.49,41.67633472]
[1759140836248,1.41643039,208.51,208.42,37.55]
[1759140836451,1.41643039,208.49,208.43,0.59]
[1759140836647,2.07643039,208.49,208.43,0.59]
[1759140837338,6.87291421,208.49,208.44,4.79754365]
[1759140837534,0.66,208.48,208.44,4.79754365]
[1759140838162,0.66,208.48,208.45,36.92]
[1759140838558,1.41643039,208.49,208.45,41.71726039]
[1759140838757,0.66,208.48,208.45,41.71726039]
[1759140839262,0.66,208.48,208.45,36.92]
[1759140839458,2.07643039,208.47,208.42,0.1]
[1759140839660,2.07643039,208.47,208.43,36.9]
[1759140840243,6.87339162,208.47,208.43,36.9]
[1759140840643,2.07643039,208.47,208.43,41.69777203]
[1759140840950,0.66,208.51,208.44,0.59]
[1759140841149,0.66,208.5,208.44,0.59]
[1759140841367,1.41643039,208.49,208.44,0.59]
[1759140841865,2.07643039,208.49,208.44,0.59]
[1759140842445,0.66,208.48,208.42,0.1]
[1759140842649,1.41643039,208.45,208.42,0.1]
[1759140843643,0.66,208.44,208.42,0.1]
[1759140844244,1.41643039,208.45,208.42,0.1]
[1759140844444,2.07643039,208.45,208.42,0.1]
[1759140844745,0.66,208.44,208.42,0.1]
[1759140845166,1.41643039,208.45,208.42,0.1]
[1759140845365,2.07643039,208.45,208.42,0.1]
[1759140846048,0.66,208.44,208.42,0.1]
[1759140847363,0.66,208.43,208.42,0.1]
[1759140849459,2.21470501,208.46,208.42,4.89798504]
[1759140849655,2.87470501,208.46,208.42,4.89798504]
[1759140850169,2.21470501,208.46,208.42,4.89798504]
[1759140850470,0.66,208.45,208.42,4.89798504]
[1759140852252,4.79693005,208.47,208.42,4.89798504]
[1759140852559,0.66,208.45,208.42,4.89798504]
[1759140858481,0.72,208.44,208.42,0.1]
[1759140859974,5.51771965,208.44,208.42,0.1]
[1759140860470,7.73242466,208.44,208.42,0.1]
[1759140869170,0.7,208.46,208.42,4.89786802]
[1759140869487,2.21470501,208.47,208.43,0.59]
[1759140869791,2.21470501,208.47,208.43,5.38756967]
[1759140869792,2.91470501,208.47,208.43,5.38756967]
[1759140870293,2.91470501,208.5,208.44,0.59]
[1759140870496,7.71091408,208.5,208.44,0.59]
[1759140870792,7.71091408,208.5,208.43,42.24756967]
[1759140870976,0.7,208.49,208.43,42.24756967]
[1759140872394,0.7,208.49,208.43,54.24200425]
[1759140873276,5.49643942,208.49,208.43,54.24200425]
[1759140873472,4.79643942,208.49,208.43,42.24756967]
[1759140873683,2.91470501,208.48,208.43,41.65756967]
[1759140873876,0.7,208.47,208.43,41.65756967]
[1759140874078,0.7,208.46,208.42,4.8979876]
[1759140874289,0.7,208.45,208.42,36.96]
[1759140875198,2.21470501,208.46,208.42,41.75795551]
[1759140875495,2.21470501,208.46,208.42,42.34795551]
[1759140876002,0.7,208.47,208.43,0.59]
[1759140876303,0.7,208.47,208.43,5.38767284]
[1759140877386,2.21470501,208.48,208.44,0.59]
[1759140877595,7.01134629,208.48,208.43,4.79767284]
[1759140877787,0.7,208.47,208.43,5.38767284]
[1759140878098,0.7,208.47,208.43,4.79767284]
[1759140878589,0.7,208.47,208.42,36.96]
[1759140878590,5.49686684,208.47,208.42,41.75796039]
[1759140878792,0.7,208.46,208.42,42.34796039]
[1759140879897,4.79686684,208.47,208.42,42.34796039]
[1759140880079,5.49686684,208.47,208.42,42.34796039]
[1759140880698,5.49686684,208.47,208.43,0.59]
[1759140881488,5.49686684,208.47,208.42,41.75796039]
[1759140881693,5.49686684,208.47,208.42,42.34796039]
[1759140882091,0.7,208.47,208.43,0.59]
[1759140882278,2.21470501,208.48,208.43,0.59]
[1759140882474,2.91470501,208.48,208.43,0.59]
[1759140883002,0.7,208.47,208.43,0.59]
[1759140883303,2.21470501,208.48,208.43,5.38756222]
[1759140883482,2.91470501,208.48,208.43,5.38756222]
[1759140883683,7.01141454,208.48,208.43,5.38756222]
[1759140883885,0.7,208.47,208.43,4.79756222]
[1759140884074,7.01141454,208.48,208.43,4.79756222]
[1759140884276,2.21470501,208.48,208.43,5.38756222]
[1759140884489,2.91470501,208.48,208.44,0.59]
[1759140885380,2.91470501,208.48,208.44,4.79741695]
[1759140885579,0.7,208.47,208.44,4.79741695]
[1759140886485,0.7,208.47,208.43,4.79777383]
[1759140886786,0.7,208.47,208.43,5.38777383]
[1759140887807,7.01133846,208.48,208.43,4.79777383]
[1759140888010,0.7,208.47,208.43,4.79777383]
[1759140888194,7.01133846,208.48,208.43,4.79777383]
[1759140888394,0.7,208.47,208.43,4.79777383]
[1759140889707,2.21470501,208.48,208.44,0.59]
[1759140889888,2.91470501,208.48,208.44,0.59]
[1759140890087,0.7,208.48,208.44,0.59]
[1759140890418,0.7,208.47,208.43,4.79777383]
[1759140890705,0.7,208.47,208.43,5.38777383]
[1759140891103,3.20722806,208.51,208.44,0.59]
[1759140891407,3.20722806,208.52,208.44,0.59]
[1759140891607,3.20722806,208.52,208.45,16.79059726]
[1759140891809,3.20722806,208.52,208.46,37.43]
[1759140892013,3.20722806,208.52,208.47,0.59]
[1759140892313,0.68,208.52,208.48,0.59]
[1759140893395,0.68,208.52,208.49,4.79639311]
[1759140895097,0.68,208.52,208.47,4.79670438]